[Event "*** Titled Tuesday Blitz"]
[Site "Chess.com"]
[Date "2021.04.27"]
[Round "11"]
[White "olksuna"]
[Black "Lion-Al-Messi"]
[Result "1-0"]
[WhiteElo "2645"]
[BlackElo "2504"]
[TimeControl "180+1"]
[EndTime "12:04:42 PDT"]
[Termination "olksuna won on time"]

1. e4 {[%clk 0:03:00.9]} 1... b6 {[%clk 0:03:00.9]} 2. d4 {[%clk 0:02:59]} 2...
Bb7 {[%clk 0:03:01.1]} 3. Nc3 {[%clk 0:02:58.5]} 3... e6 {[%clk 0:03:01.5]} 4.
Bd3 {[%clk 0:02:58.5]} 4... Bb4 {[%clk 0:03:01.8]} 5. Ne2 {[%clk 0:02:57.4]}
5... d5 {[%clk 0:03:00.4]} 6. exd5 {[%clk 0:02:56.2]} 6... Qxd5 {[%clk
0:02:50.9]} 7. Nf4 {[%clk 0:02:49.9]} 7... Qd6 {[%clk 0:02:41.6]} 8. O-O {[%clk
0:02:44.2]} 8... Nf6 {[%clk 0:02:41.1]} 9. a3 {[%clk 0:02:29.5]} 9... Bxc3
{[%clk 0:02:40.8]} 10. bxc3 {[%clk 0:02:30.4]} 10... O-O {[%clk 0:02:41.3]} 11.
Re1 {[%clk 0:02:25.7]} 11... Nbd7 {[%clk 0:02:41.1]} 12. a4 {[%clk 0:02:17.2]}
12... Rfd8 {[%clk 0:01:00.8]} 13. a5 {[%clk 0:02:08]} 13... Nf8 {[%clk
0:00:56.2]} 14. a6 {[%clk 0:01:55.8]} 14... Bd5 {[%clk 0:00:51.7]} 15. Nh5
{[%clk 0:01:33.8]} 15... Nxh5 {[%clk 0:00:42.6]} 16. Qxh5 {[%clk 0:01:34.7]}
16... Ng6 {[%clk 0:00:42.9]} 17. Qg4 {[%clk 0:01:10.1]} 17... f5 {[%clk
0:00:40.6]} 18. Qg5 {[%clk 0:01:06.4]} 18... c5 {[%clk 0:00:40.4]} 19. dxc5
{[%clk 0:01:04.1]} 19... bxc5 {[%clk 0:00:40.4]} 20. c4 {[%clk 0:01:00.8]} 20...
Bc6 {[%clk 0:00:40.1]} 21. Bb2 {[%clk 0:00:57.3]} 21... Qf4 {[%clk 0:00:32.4]}
22. Qxf4 {[%clk 0:00:47.3]} 22... Nxf4 {[%clk 0:00:32.5]} 23. Bf1 {[%clk
0:00:48.2]} 23... Kf7 {[%clk 0:00:28.8]} 24. Rab1 {[%clk 0:00:42.5]} 24... Rab8
{[%clk 0:00:19.7]} 25. Be5 {[%clk 0:00:41.8]} 25... Rxb1 {[%clk 0:00:19.4]} 26.
Rxb1 {[%clk 0:00:42.7]} 26... Ng6 {[%clk 0:00:19.5]} 27. Bc3 {[%clk 0:00:30.5]}
27... Rd7 {[%clk 0:00:19.1]} 28. f3 {[%clk 0:00:29.1]} 28... Nf4 {[%clk
0:00:18.4]} 29. Kf2 {[%clk 0:00:28.5]} 29... g5 {[%clk 0:00:17.8]} 30. g3 {[%clk
0:00:28.4]} 30... Ng6 {[%clk 0:00:17.9]} 31. Be2 {[%clk 0:00:27.7]} 31... h5
{[%clk 0:00:17.9]} 32. Rb8 {[%clk 0:00:27.6]} 32... g4 {[%clk 0:00:17.6]} 33.
Rc8 {[%clk 0:00:24.9]} 33... Ba4 {[%clk 0:00:05.5]} 34. Rxc5 {[%clk 0:00:21.5]}
34... Bxc2 {[%clk 0:00:04.6]} 35. Rb5 {[%clk 0:00:21.9]} 35... Ne7 {[%clk
0:00:04.4]} 36. Rb7 {[%clk 0:00:21.7]} 36... Ke8 {[%clk 0:00:03.9]} 37. Bd4
{[%clk 0:00:20.5]} 37... Nc6 {[%clk 0:00:03.2]} 38. Be3 {[%clk 0:00:16.9]} 38...
Ba4 {[%clk 0:00:02.2]} 39. Rb1 {[%clk 0:00:10.2]} 39... Kd8 {[%clk 0:00:02.5]}
40. Bg5+ {[%clk 0:00:08.5]} 40... Kc8 {[%clk 0:00:02.7]} 41. Bf4 {[%clk
0:00:08.8]} 41... e5 {[%clk 0:00:02.2]} 42. Be3 {[%clk 0:00:07.6]} 42... Nd4
{[%clk 0:00:02.5]} 43. fxg4 {[%clk 0:00:06]} 43... hxg4 {[%clk 0:00:02.1]} 44.
Bd3 {[%clk 0:00:06]} 44... e4 {[%clk 0:00:01.5]} 45. Be2 {[%clk 0:00:06.2]}
45... Bc6 {[%clk 0:00:01.7]} 46. Bf4 {[%clk 0:00:06.2]} 1-0

[Event "*** Titled Tuesday Blitz"]
[Site "Chess.com"]
[Date "2021.04.27"]
[Round "11"]
[White "CraiggoryC"]
[Black "WPWPWP-2015"]
[Result "0-1"]
[WhiteElo "2239"]
[BlackElo "2419"]
[TimeControl "180+1"]
[EndTime "12:04:42 PDT"]
[Termination "WPWPWP-2015 won on time"]

1. e4 {[%clk 0:03:00.9]} 1... c5 {[%clk 0:02:49.8]} 2. Nf3 {[%clk 0:03:00.8]}
2... d6 {[%clk 0:02:48.8]} 3. d4 {[%clk 0:03:01.3]} 3... cxd4 {[%clk 0:02:49.5]}
4. Nxd4 {[%clk 0:03:01.8]} 4... Nf6 {[%clk 0:02:49.9]} 5. Nc3 {[%clk 0:03:02.4]}
5... a6 {[%clk 0:02:50.7]} 6. Bc4 {[%clk 0:03:02.4]} 6... e6 {[%clk 0:02:49]} 7.
O-O {[%clk 0:03:02]} 7... Be7 {[%clk 0:02:48.4]} 8. Bb3 {[%clk 0:02:58.7]} 8...
O-O {[%clk 0:02:47.7]} 9. Qf3 {[%clk 0:02:52.3]} 9... Nbd7 {[%clk 0:02:47.3]}
10. Qg3 {[%clk 0:02:42.9]} 10... Nc5 {[%clk 0:02:43.4]} 11. Bh6 {[%clk
0:02:35.4]} 11... Ne8 {[%clk 0:02:36.8]} 12. Rae1 {[%clk 0:02:31.9]} 12... Nxb3
{[%clk 0:02:34]} 13. axb3 {[%clk 0:02:28.8]} 13... Bf6 {[%clk 0:02:32.4]} 14.
Nf3 {[%clk 0:02:15]} 14... Kh8 {[%clk 0:02:27.6]} 15. Bg5 {[%clk 0:02:14.4]}
15... Bd7 {[%clk 0:02:23.5]} 16. e5 {[%clk 0:01:57.6]} 16... dxe5 {[%clk
0:02:12.4]} 17. Nxe5 {[%clk 0:01:35.3]} 17... Bxg5 {[%clk 0:02:06.1]} 18. Nxd7
{[%clk 0:01:35.3]} 18... Qxd7 {[%clk 0:02:00]} 19. Qxg5 {[%clk 0:01:35]} 19...
Nf6 {[%clk 0:01:54]} 20. Re3 {[%clk 0:01:27.2]} 20... h6 {[%clk 0:01:50.9]} 21.
Rh3 {[%clk 0:01:10.4]} 21... Nh7 {[%clk 0:01:45.5]} 22. Qe5 {[%clk 0:01:02.9]}
22... f6 {[%clk 0:01:40.6]} 23. Qe2 {[%clk 0:00:53.5]} 23... Rad8 {[%clk
0:01:33.8]} 24. Rd3 {[%clk 0:00:48.5]} 24... Qc6 {[%clk 0:01:27]} 25. Rfd1
{[%clk 0:00:45.5]} 25... Rxd3 {[%clk 0:01:25.8]} 26. Rxd3 {[%clk 0:00:42.6]}
26... Ng5 {[%clk 0:01:24.6]} 27. h4 {[%clk 0:00:38.8]} 27... Nf7 {[%clk
0:01:23.5]} 28. Qd2 {[%clk 0:00:20.6]} 28... Ne5 {[%clk 0:01:20.7]} 29. Rd6
{[%clk 0:00:20.3]} 29... Qc8 {[%clk 0:01:18.9]} 30. f4 {[%clk 0:00:19.3]} 30...
Nf7 {[%clk 0:01:15.5]} 31. Rd7 {[%clk 0:00:17.6]} 31... Rd8 {[%clk 0:01:16]} 32.
Rxd8+ {[%clk 0:00:16.7]} 32... Nxd8 {[%clk 0:01:16.4]} 33. Qd6 {[%clk 0:00:13]}
33... Nc6 {[%clk 0:01:15.3]} 34. Ne4 {[%clk 0:00:11.4]} 34... e5 {[%clk
0:00:55.7]} 35. Nxf6 {[%clk 0:00:11.1]} 35... exf4 {[%clk 0:00:46.6]} 36. Qxf4
{[%clk 0:00:05.3]} 36... Ne7 {[%clk 0:00:34.7]} 37. Ne4 {[%clk 0:00:02.8]} 37...
Qxc2 {[%clk 0:00:30.1]} 38. Qf8+ {[%clk 0:00:02.6]} 38... Ng8 {[%clk 0:00:29]}
39. Nd6 {[%clk 0:00:02.8]} 39... Kh7 {[%clk 0:00:17.6]} 40. Qf5+ {[%clk
0:00:02]} 40... Qxf5 {[%clk 0:00:16.5]} 41. Nxf5 {[%clk 0:00:02.9]} 41... Kg6
{[%clk 0:00:11]} 42. Nd6 {[%clk 0:00:03.4]} 42... b6 {[%clk 0:00:09.9]} 43. Nc8
{[%clk 0:00:03.1]} 43... b5 {[%clk 0:00:09.8]} 44. Nd6 {[%clk 0:00:01.8]} 44...
Kh5 {[%clk 0:00:07.9]} 45. g3 {[%clk 0:00:01.5]} 45... Ne7 {[%clk 0:00:05]} 46.
Kg2 {[%clk 0:00:01.6]} 46... Kg4 {[%clk 0:00:04.5]} 47. b4 {[%clk 0:00:01.6]}
47... Nf5 {[%clk 0:00:04.6]} 0-1

[Event "*** Titled Tuesday Blitz"]
[Site "Chess.com"]
[Date "2021.04.27"]
[Round "11"]
[White "TengisChess"]
[Black "KubaGepard"]
[Result "1-0"]
[WhiteElo "2553"]
[BlackElo "2405"]
[TimeControl "180+1"]
[EndTime "12:04:43 PDT"]
[Termination "TengisChess won by resignation"]

1. d4 {[%clk 0:02:45.9]} 1... d5 {[%clk 0:02:58.5]} 2. Nf3 {[%clk 0:02:46.8]}
2... Nf6 {[%clk 0:02:58.3]} 3. c4 {[%clk 0:02:45.9]} 3... dxc4 {[%clk
0:02:59.2]} 4. Nc3 {[%clk 0:02:45.8]} 4... a6 {[%clk 0:02:57.1]} 5. e4 {[%clk
0:02:44.6]} 5... b5 {[%clk 0:02:56.3]} 6. e5 {[%clk 0:02:45.1]} 6... Nd5 {[%clk
0:02:54.5]} 7. Be2 {[%clk 0:02:45.4]} 7... c6 {[%clk 0:02:41.8]} 8. O-O {[%clk
0:02:44.7]} 8... e6 {[%clk 0:02:41.1]} 9. Ng5 {[%clk 0:02:44.6]} 9... Be7 {[%clk
0:02:39.8]} 10. Nge4 {[%clk 0:02:41.9]} 10... Bb7 {[%clk 0:02:29]} 11. g3 {[%clk
0:02:41.1]} 11... Nd7 {[%clk 0:02:27.5]} 12. h4 {[%clk 0:02:41]} 12... N7b6
{[%clk 0:02:25.4]} 13. h5 {[%clk 0:02:40.2]} 13... h6 {[%clk 0:02:24.3]} 14. Bf3
{[%clk 0:02:39]} 14... Nxc3 {[%clk 0:02:21.2]} 15. bxc3 {[%clk 0:02:38.4]} 15...
Nd5 {[%clk 0:02:20.4]} 16. Qe2 {[%clk 0:02:36.5]} 16... Qc7 {[%clk 0:02:18.3]}
17. a4 {[%clk 0:02:33.1]} 17... a5 {[%clk 0:02:06.9]} 18. Rd1 {[%clk 0:02:24.1]}
18... Ba6 {[%clk 0:02:06.2]} 19. Bf4 {[%clk 0:02:17.1]} 19... b4 {[%clk
0:01:59.6]} 20. Qc2 {[%clk 0:02:11.7]} 20... b3 {[%clk 0:01:55]} 21. Qd2 {[%clk
0:02:10.3]} 21... Rd8 {[%clk 0:01:46.2]} 22. Re1 {[%clk 0:02:08]} 22... Bb7
{[%clk 0:01:41.5]} 23. Qe2 {[%clk 0:02:01.3]} 23... Ba6 {[%clk 0:01:40.9]} 24.
Qd2 {[%clk 0:02:00.6]} 24... Qb6 {[%clk 0:01:34.7]} 25. Nd6+ {[%clk 0:01:56.2]}
25... Bxd6 {[%clk 0:01:32.1]} 26. exd6 {[%clk 0:01:57.1]} 26... Rd7 {[%clk
0:01:25.3]} 27. Rab1 {[%clk 0:01:53.4]} 27... Qb8 {[%clk 0:01:19.9]} 28. Be5
{[%clk 0:01:30]} 28... f6 {[%clk 0:01:02.7]} 29. Bf4 {[%clk 0:01:26.8]} 29...
Nxf4 {[%clk 0:01:01.9]} 30. Qxf4 {[%clk 0:01:25.3]} 30... Qxd6 {[%clk
0:01:00.3]} 31. Qg4 {[%clk 0:01:19.8]} 31... Re7 {[%clk 0:00:56.5]} 32. Qg6+
{[%clk 0:01:18.9]} 32... Kd7 {[%clk 0:00:55.7]} 33. Bg4 {[%clk 0:01:16.1]} 33...
Rhe8 {[%clk 0:00:54.8]} 34. Rbd1 {[%clk 0:01:13]} 34... Qd5 {[%clk 0:00:54]} 35.
Qb1 {[%clk 0:01:01.4]} 35... Kc7 {[%clk 0:00:51.4]} 36. Re3 {[%clk 0:01:00]}
36... Bb7 {[%clk 0:00:47.9]} 37. Bf3 {[%clk 0:00:59.8]} 37... Qd6 {[%clk
0:00:47.9]} 38. Rd2 {[%clk 0:00:56]} 38... Rd8 {[%clk 0:00:38.7]} 39. Qf1 {[%clk
0:00:55.8]} 39... Qa3 {[%clk 0:00:37.2]} 40. Qxc4 {[%clk 0:00:54.8]} 40... b2
{[%clk 0:00:35.2]} 41. Re1 {[%clk 0:00:54]} 41... e5 {[%clk 0:00:28.2]} 42. Rb1
{[%clk 0:00:52.3]} 42... exd4 {[%clk 0:00:27.9]} 43. Rdxb2 {[%clk 0:00:52.4]}
43... Rb8 {[%clk 0:00:20.8]} 44. Bxc6 {[%clk 0:00:48.5]} 44... Bxc6 {[%clk
0:00:18.9]} 45. Rxb8 {[%clk 0:00:48.2]} 45... Qxc3 {[%clk 0:00:17.2]} 46. R1b7+
{[%clk 0:00:48]} 46... Kd6 {[%clk 0:00:15.7]} 47. Rd8+ {[%clk 0:00:47.9]} 47...
Rd7 {[%clk 0:00:12]} 48. Rdxd7+ {[%clk 0:00:44.3]} 48... Bxd7 {[%clk 0:00:12.2]}
49. Rb6+ {[%clk 0:00:42.7]} 49... Ke7 {[%clk 0:00:12.1]} 50. Qd5 {[%clk
0:00:41.2]} 50... Qe1+ {[%clk 0:00:11.1]} 51. Kg2 {[%clk 0:00:39.5]} 51... Qe5
{[%clk 0:00:11.3]} 52. Qf3 {[%clk 0:00:26.2]} 52... Bf5 {[%clk 0:00:09.7]} 53.
Rb5 {[%clk 0:00:24.2]} 53... Qe4 {[%clk 0:00:02.2]} 54. Rxf5 {[%clk 0:00:23.7]}
1-0

[Event "*** Titled Tuesday Blitz"]
[Site "Chess.com"]
[Date "2021.04.27"]
[Round "11"]
[White "KetiGrant"]
[Black "Sueetin"]
[Result "0-1"]
[WhiteElo "2377"]
[BlackElo "2503"]
[TimeControl "180+1"]
[EndTime "12:04:43 PDT"]
[Termination "Sueetin won on time"]

1. e4 {[%clk 0:03:00.9]} 1... e5 {[%clk 0:03:00.5]} 2. Nf3 {[%clk 0:03:00.7]}
2... Nf6 {[%clk 0:03:01.1]} 3. Nc3 {[%clk 0:02:59.1]} 3... Nc6 {[%clk
0:03:00.3]} 4. Bc4 {[%clk 0:02:56.3]} 4... Bc5 {[%clk 0:02:55.2]} 5. d3 {[%clk
0:02:53.2]} 5... h6 {[%clk 0:02:51.2]} 6. Be3 {[%clk 0:02:49.2]} 6... Bxe3
{[%clk 0:02:43.4]} 7. fxe3 {[%clk 0:02:49.1]} 7... d6 {[%clk 0:02:42.9]} 8. O-O
{[%clk 0:02:44.9]} 8... O-O {[%clk 0:02:35.2]} 9. a3 {[%clk 0:02:41.6]} 9... Be6
{[%clk 0:02:34.1]} 10. Bxe6 {[%clk 0:02:33.5]} 10... fxe6 {[%clk 0:02:35]} 11.
Qe1 {[%clk 0:02:31.9]} 11... Qe8 {[%clk 0:02:32]} 12. Qg3 {[%clk 0:02:30.7]}
12... Qh5 {[%clk 0:02:24.8]} 13. d4 {[%clk 0:02:29.5]} 13... Rf7 {[%clk
0:02:14.3]} 14. d5 {[%clk 0:02:21.6]} 14... exd5 {[%clk 0:02:04.6]} 15. exd5
{[%clk 0:02:21.2]} 15... Ne7 {[%clk 0:02:03.3]} 16. e4 {[%clk 0:02:20.5]} 16...
Ng6 {[%clk 0:01:54.2]} 17. Rae1 {[%clk 0:02:19]} 17... Raf8 {[%clk 0:01:50]} 18.
h3 {[%clk 0:02:02.4]} 18... Nf4 {[%clk 0:01:46.4]} 19. Nh4 {[%clk 0:02:01.5]}
19... Kh7 {[%clk 0:01:28]} 20. Kh2 {[%clk 0:01:37.6]} 20... g6 {[%clk
0:01:24.2]} 21. Re3 {[%clk 0:01:27.8]} 21... Ng8 {[%clk 0:01:11.3]} 22. Ref3
{[%clk 0:01:23]} 22... a6 {[%clk 0:01:07.5]} 23. Qe1 {[%clk 0:01:21]} 23... Kg7
{[%clk 0:00:55.2]} 24. g3 {[%clk 0:01:19.5]} 24... Nxh3 {[%clk 0:00:55.6]} 25.
Rxf7+ {[%clk 0:01:14]} 25... Rxf7 {[%clk 0:00:56.5]} 26. Rxf7+ {[%clk
0:01:13.6]} 26... Kxf7 {[%clk 0:00:56.8]} 27. Qf1+ {[%clk 0:01:12.3]} 27... Nf4
{[%clk 0:00:57.1]} 28. Qc4 {[%clk 0:00:44.5]} 28... Qg4 {[%clk 0:00:38.1]} 29.
Qxc7+ {[%clk 0:00:43.8]} 29... Ne7 {[%clk 0:00:38.6]} 30. gxf4 {[%clk
0:00:38.5]} 30... Qxh4+ {[%clk 0:00:38.6]} 31. Kg2 {[%clk 0:00:38.1]} 31... Qg4+
{[%clk 0:00:38.7]} 32. Kf1 {[%clk 0:00:35.8]} 32... Qxf4+ {[%clk 0:00:38.1]} 33.
Ke2 {[%clk 0:00:35.2]} 33... Qf6 {[%clk 0:00:30.7]} 34. Qxb7 {[%clk 0:00:32.8]}
34... g5 {[%clk 0:00:24.3]} 35. Qxa6 {[%clk 0:00:31.9]} 35... g4 {[%clk
0:00:22.7]} 36. Qd3 {[%clk 0:00:30.4]} 36... Ng6 {[%clk 0:00:19.9]} 37. Qg3
{[%clk 0:00:29.3]} 37... Nf4+ {[%clk 0:00:19.6]} 38. Kd2 {[%clk 0:00:29.2]}
38... h5 {[%clk 0:00:19.3]} 39. a4 {[%clk 0:00:26.9]} 39... Qg5 {[%clk
0:00:19.2]} 40. Qe3 {[%clk 0:00:24.6]} 40... g3 {[%clk 0:00:17.9]} 41. Ne2
{[%clk 0:00:24.3]} 41... g2 {[%clk 0:00:17.2]} 42. Ng1 {[%clk 0:00:23.7]} 42...
h4 {[%clk 0:00:16.5]} 43. a5 {[%clk 0:00:15.2]} 43... h3 {[%clk 0:00:15]} 44. a6
{[%clk 0:00:02.4]} 44... h2 {[%clk 0:00:12.6]} 45. Nf3 {[%clk 0:00:02.4]} 45...
Qg3 {[%clk 0:00:07.4]} 46. Nxe5+ {[%clk 0:00:01.4]} 46... dxe5 {[%clk
0:00:06.1]} 47. Qxg3 {[%clk 0:00:01.3]} 47... g1=Q {[%clk 0:00:06.6]} 0-1

[Event "*** Titled Tuesday Blitz"]
[Site "Chess.com"]
[Date "2021.04.27"]
[Round "11"]
[White "zmeeed67"]
[Black "Korchmar_Vasiliy"]
[Result "1/2-1/2"]
[WhiteElo "2564"]
[BlackElo "2677"]
[TimeControl "180+1"]
[EndTime "12:04:47 PDT"]
[Termination "Game drawn by repetition"]

1. d4 {[%clk 0:03:00.9]} 1... Nf6 {[%clk 0:02:59.6]} 2. c4 {[%clk 0:03:01.1]}
2... c6 {[%clk 0:02:59.8]} 3. Nc3 {[%clk 0:03:01.5]} 3... d5 {[%clk 0:03:00.1]}
4. e3 {[%clk 0:03:02]} 4... e6 {[%clk 0:02:59.3]} 5. Nf3 {[%clk 0:03:02.1]} 5...
a6 {[%clk 0:02:59.7]} 6. Bd3 {[%clk 0:02:57]} 6... dxc4 {[%clk 0:02:59.4]} 7.
Bxc4 {[%clk 0:02:57]} 7... b5 {[%clk 0:02:59.6]} 8. Bd3 {[%clk 0:02:57.3]} 8...
c5 {[%clk 0:02:59]} 9. O-O {[%clk 0:02:52.4]} 9... Bb7 {[%clk 0:02:59.1]} 10.
Qe2 {[%clk 0:02:47.4]} 10... Nbd7 {[%clk 0:02:58.3]} 11. b3 {[%clk 0:02:29.7]}
11... Bd6 {[%clk 0:02:58.4]} 12. Bb2 {[%clk 0:02:27.1]} 12... O-O {[%clk
0:02:58.9]} 13. Rac1 {[%clk 0:02:24.5]} 13... Rc8 {[%clk 0:02:57.9]} 14. Bb1
{[%clk 0:02:20.4]} 14... e5 {[%clk 0:02:52.1]} 15. dxc5 {[%clk 0:01:47.5]} 15...
Nxc5 {[%clk 0:02:50.7]} 16. Rfd1 {[%clk 0:01:46.6]} 16... Qe7 {[%clk 0:02:49.1]}
17. e4 {[%clk 0:01:12.1]} 17... Ne6 {[%clk 0:02:32.8]} 18. g3 {[%clk 0:00:39.9]}
18... g6 {[%clk 0:01:59.3]} 19. Nd5 {[%clk 0:00:37.7]} 19... Bxd5 {[%clk
0:01:59.5]} 20. exd5 {[%clk 0:00:38.6]} 20... Rxc1 {[%clk 0:01:59.9]} 21. Bxc1
{[%clk 0:00:36.8]} 21... Nc7 {[%clk 0:01:59.7]} 22. Bg5 {[%clk 0:00:32.3]} 22...
e4 {[%clk 0:01:54]} 23. Nd2 {[%clk 0:00:23]} 23... Ncxd5 {[%clk 0:01:44.1]} 24.
Nxe4 {[%clk 0:00:23.4]} 24... Qe5 {[%clk 0:01:23]} 25. Bxf6 {[%clk 0:00:18.1]}
25... Nxf6 {[%clk 0:01:23.9]} 26. Rxd6 {[%clk 0:00:13.5]} 26... Nxe4 {[%clk
0:01:23.7]} 27. Rd1 {[%clk 0:00:12.9]} 27... f5 {[%clk 0:01:16.1]} 28. Bxe4
{[%clk 0:00:11.6]} 28... fxe4 {[%clk 0:01:17]} 29. Qe3 {[%clk 0:00:09.7]} 29...
Rf7 {[%clk 0:00:59.7]} 30. h4 {[%clk 0:00:09.4]} 30... Rf3 {[%clk 0:00:52.3]}
31. Rd8+ {[%clk 0:00:05.2]} 31... Kg7 {[%clk 0:00:51.1]} 32. Qa7+ {[%clk
0:00:05.5]} 32... Rf7 {[%clk 0:00:51.5]} 33. Rd7 {[%clk 0:00:04.8]} 33... Rxd7
{[%clk 0:00:43.9]} 34. Qxd7+ {[%clk 0:00:05.7]} 34... Kh6 {[%clk 0:00:44.2]} 35.
Qd8 {[%clk 0:00:05.5]} 35... Qc5 {[%clk 0:00:29.3]} 36. Kg2 {[%clk 0:00:04.4]}
36... e3 {[%clk 0:00:27]} 37. fxe3 {[%clk 0:00:03.2]} 37... Qc2+ {[%clk
0:00:23.5]} 38. Kh3 {[%clk 0:00:02.8]} 38... Qf5+ {[%clk 0:00:23.5]} 39. Kg2
{[%clk 0:00:03.6]} 39... Qe4+ {[%clk 0:00:22.7]} 40. Kf2 {[%clk 0:00:03.6]}
40... Qc2+ {[%clk 0:00:22.7]} 41. Kf3 {[%clk 0:00:04]} 41... Qf5+ {[%clk
0:00:20.6]} 42. Ke2 {[%clk 0:00:04.3]} 42... Qg4+ {[%clk 0:00:19]} 43. Kf2
{[%clk 0:00:03.4]} 43... Qf5+ {[%clk 0:00:19.3]} 44. Kg2 {[%clk 0:00:03.2]}
44... Qc2+ {[%clk 0:00:09.5]} 45. Kf3 {[%clk 0:00:03.5]} 45... Qf5+ {[%clk
0:00:08.8]} 46. Ke2 {[%clk 0:00:03.9]} 46... Qh5+ {[%clk 0:00:07.7]} 47. Kf2
{[%clk 0:00:03.5]} 47... Qf5+ {[%clk 0:00:07.3]} 48. Ke2 {[%clk 0:00:03.9]}
1/2-1/2

[Event "*** Titled Tuesday Blitz"]
[Site "Chess.com"]
[Date "2021.04.27"]
[Round "11"]
[White "Kolle05"]
[Black "Vigorito-NE"]
[Result "0-1"]
[WhiteElo "2329"]
[BlackElo "2496"]
[TimeControl "180+1"]
[EndTime "12:04:52 PDT"]
[Termination "Vigorito-NE won on time"]

1. e4 {[%clk 0:03:00.9]} 1... c5 {[%clk 0:02:58.9]} 2. Nf3 {[%clk 0:03:01]} 2...
d6 {[%clk 0:02:58.8]} 3. Bb5+ {[%clk 0:03:00.3]} 3... Nd7 {[%clk 0:02:47.5]} 4.
O-O {[%clk 0:02:59.6]} 4... a6 {[%clk 0:02:47.4]} 5. Bd3 {[%clk 0:02:59.2]} 5...
Ngf6 {[%clk 0:02:46]} 6. Re1 {[%clk 0:02:58.1]} 6... e6 {[%clk 0:02:43.2]} 7. c3
{[%clk 0:02:58]} 7... b5 {[%clk 0:02:42.1]} 8. Bc2 {[%clk 0:02:57.9]} 8... c4
{[%clk 0:02:40.3]} 9. a4 {[%clk 0:02:57.5]} 9... Bb7 {[%clk 0:02:39.6]} 10. d4
{[%clk 0:02:57.5]} 10... cxd3 {[%clk 0:02:34.8]} 11. Qxd3 {[%clk 0:02:57.4]}
11... Nc5 {[%clk 0:02:28.5]} 12. Qe2 {[%clk 0:02:57.2]} 12... bxa4 {[%clk
0:02:26.8]} 13. Be3 {[%clk 0:02:55.1]} 13... Nfd7 {[%clk 0:02:18.3]} 14. Bxc5
{[%clk 0:02:26.3]} 14... Nxc5 {[%clk 0:02:16.5]} 15. Rxa4 {[%clk 0:02:27.2]}
15... Be7 {[%clk 0:01:59.7]} 16. Rd4 {[%clk 0:02:20.7]} 16... Qc7 {[%clk
0:01:51.5]} 17. e5 {[%clk 0:02:10.3]} 17... d5 {[%clk 0:01:37.7]} 18. Rg4 {[%clk
0:01:49.4]} 18... g6 {[%clk 0:01:32.8]} 19. Nd4 {[%clk 0:01:46.4]} 19... h5
{[%clk 0:01:27.7]} 20. Rg3 {[%clk 0:01:39.4]} 20... Nd7 {[%clk 0:01:23.3]} 21.
Rxg6 {[%clk 0:01:36.1]} 21... O-O-O {[%clk 0:00:50.7]} 22. Rg7 {[%clk
0:01:26.7]} 22... Rdf8 {[%clk 0:00:50.1]} 23. Nxe6 {[%clk 0:01:24.1]} 23... fxe6
{[%clk 0:00:47.1]} 24. Rxe7 {[%clk 0:01:23.7]} 24... Qb6 {[%clk 0:00:39]} 25.
Rf1 {[%clk 0:00:51.6]} 25... h4 {[%clk 0:00:38.4]} 26. h3 {[%clk 0:00:50.6]}
26... Rhg8 {[%clk 0:00:37.2]} 27. Na3 {[%clk 0:00:38.3]} 27... Nc5 {[%clk
0:00:35.8]} 28. b4 {[%clk 0:00:34.5]} 28... d4 {[%clk 0:00:19.9]} 29. f3 {[%clk
0:00:11.3]} 29... d3 {[%clk 0:00:17.9]} 30. Qf2 {[%clk 0:00:08.2]} 30... dxc2
{[%clk 0:00:16]} 31. Qxc5+ {[%clk 0:00:08.3]} 31... Qxc5+ {[%clk 0:00:16.1]} 32.
bxc5 {[%clk 0:00:09.2]} 32... Rd8 {[%clk 0:00:13.2]} 33. Nxc2 {[%clk 0:00:08.2]}
33... Rd2 {[%clk 0:00:12.9]} 34. Rf2 {[%clk 0:00:08.6]} 34... Rd1+ {[%clk
0:00:11.9]} 35. Kh2 {[%clk 0:00:08.9]} 35... Bd5 {[%clk 0:00:11.3]} 36. Nd4
{[%clk 0:00:08.9]} 36... Rd3 {[%clk 0:00:09.6]} 37. Nxe6 {[%clk 0:00:04.5]}
37... Rxc3 {[%clk 0:00:09.6]} 38. Nf4 {[%clk 0:00:02.7]} 38... Bc6 {[%clk
0:00:08.4]} 39. Rh7 {[%clk 0:00:02.6]} 39... Rxc5 {[%clk 0:00:08.1]} 40. Rxh4
{[%clk 0:00:02.8]} 40... Rxe5 {[%clk 0:00:08.6]} 41. Rh6 {[%clk 0:00:02.5]}
41... Bb7 {[%clk 0:00:08.2]} 42. Rc2+ {[%clk 0:00:02.2]} 42... Kb8 {[%clk
0:00:08.2]} 43. Rb2 {[%clk 0:00:02.7]} 43... Rb5 {[%clk 0:00:08.8]} 44. Rxb5
{[%clk 0:00:02.1]} 44... axb5 {[%clk 0:00:09]} 45. Rb6 {[%clk 0:00:02.7]} 45...
Rg5 {[%clk 0:00:07.8]} 46. h4 {[%clk 0:00:03.2]} 46... Rc5 {[%clk 0:00:07.9]}
47. h5 {[%clk 0:00:02.5]} 47... Kc7 {[%clk 0:00:08.7]} 48. Rg6 {[%clk
0:00:02.3]} 48... Rf5 {[%clk 0:00:08.8]} 49. Kg3 {[%clk 0:00:01.7]} 49... b4
{[%clk 0:00:08.3]} 0-1